fUSD/lending_fUSD_20240408
["ID","MTS","AMOUNT","RATE_DAILY","PERIOD"]
[321898184,1712595040492,-906.33,0.00024921,2]
[321898185,1712595040501,-164.2636815,0.00024923,2]
[321898186,1712595040511,-411.4,0.00024982,2]
[321898187,1712595040521,-425.75453347,0.00024984,2]
[321898188,1712595040530,-176.49461477,0.00024988,2]
[321898189,1712595040540,-485.70839377,0.00024988,2]
[321898190,1712595040549,-217.34488466,0.00024988,2]
[321898191,1712595040558,-155.13780993,0.00024988,2]
[321898192,1712595040568,-1178.85434,0.00024989,2]
[321898193,1712595040577,-1221.00447098,0.00024989,2]
[321898194,1712595040589,-229.09762976,0.00024996,2]
[321898195,1712595040598,-522.31122644,0.00024996,2]
[321898196,1712595040609,-704.49276447,0.00024996,2]
[321898197,1712595040618,-706.99577818,0.00024996,2]
[321898198,1712595040628,-681.90393791,0.00024996,2]
[321898199,1712595040637,-155.0,0.00024996,2]
[321898200,1712595040647,-2352.12069937,0.00024996,2]
[321898201,1712595040656,-735.77904189,0.00024996,2]
[321898202,1712595040665,-1968.4207604,0.00024996,2]
[321898203,1712595040674,-166.88650538,0.00024996,2]
[321898204,1712595040684,-155.0,0.00024996,2]
[321898205,1712595040693,-743.475074,0.00024996,7]
[321898206,1712595040703,-743.475074,0.00024996,7]
[321898207,1712595040712,-743.475074,0.00024996,7]
[321898208,1712595040721,-743.475074,0.00024996,7]
[321898209,1712595040730,-743.475074,0.00024996,7]
[321898210,1712595040740,-743.475074,0.00024996,7]
[321898211,1712595040750,-674.695404,0.00024996,7]
[321898212,1712595040759,-674.695404,0.00024996,7]
[321898213,1712595040768,-151.0,0.00024996,7]
[321898214,1712595040778,-674.695404,0.00024996,7]
[321898215,1712595040787,-151.0,0.00024996,7]
[321898216,1712595040797,-151.0,0.00024996,7]
[321898217,1712595040808,-151.0,0.00024996,7]
[321898218,1712595040818,-151.0,0.00024996,7]
[321898219,1712595040827,-205.666237,0.00024996,7]
[321898220,1712595040836,-151.0,0.00024996,7]
[321898221,1712595040847,-674.695404,0.00024996,7]
[321898222,1712595040856,-674.695404,0.00024996,7]
[321898223,1712595040866,-674.695404,0.00024996,7]
[321898224,1712595040875,-151.0,0.00024996,7]
[321898225,1712595040885,-151.0,0.00024996,7]
[321898226,1712595040894,-151.0,0.00024996,7]
[321898227,1712595040904,-151.0,0.00024996,7]
[321898228,1712595040913,-151.0,0.00024996,7]
[321898229,1712595040923,-151.0,0.00024996,7]
[321898230,1712595040932,-151.0,0.00024996,7]
[321898231,1712595040942,-151.0,0.00024996,7]
[321898232,1712595040951,-151.0,0.00024996,7]
[321898233,1712595040960,-151.0,0.00024996,7]
[321898234,1712595040970,-151.0,0.00024996,7]
[321898235,1712595040979,-151.0,0.00024996,7]
[321898236,1712595040989,-195.547668,0.00024996,7]
[321898237,1712595040999,-195.547668,0.00024996,7]
[321898238,1712595041008,-195.547668,0.00024996,7]
[321898239,1712595041018,-195.547668,0.00024996,7]
[321898240,1712595041028,-195.547668,0.00024996,7]
[321898241,1712595041038,-195.547668,0.00024996,7]
[321898242,1712595041047,-195.547668,0.00024996,7]
[321898243,1712595041057,-195.547668,0.00024996,7]
[321898244,1712595041067,-195.547668,0.00024996,7]
[321898245,1712595041077,-195.547668,0.00024996,7]
[321898246,1712595041086,-151.0,0.00024996,7]
[321898247,1712595041095,-151.0,0.00024996,7]
[321898248,1712595041105,-151.0,0.00024996,7]
[321898249,1712595041114,-151.0,0.00024996,7]
[321898250,1712595041125,-151.0,0.00024996,7]
[321898251,1712595041134,-151.0,0.00024996,7]
[321898252,1712595041145,-151.0,0.00024996,7]
[321898253,1712595041155,-168.978678,0.00024996,7]
[321898254,1712595041164,-151.0,0.00024996,7]
[321898255,1712595041173,-151.0,0.00024996,7]
[321898256,1712595041183,-151.0,0.00024996,7]
[321898257,1712595041192,-253.367532,0.00024996,7]
[321898258,1712595041201,-253.367532,0.00024996,7]
[321898259,1712595041211,-253.367532,0.00024996,7]
[321898260,1712595041221,-253.367532,0.00024996,7]
[321898261,1712595041231,-253.367532,0.00024996,7]
[321898262,1712595041240,-253.367532,0.00024996,7]
[321898263,1712595041250,-253.367532,0.00024996,7]
[321898264,1712595041260,-253.367532,0.00024996,7]
[321898265,1712595041269,-253.367532,0.00024996,7]
[321898266,1712595041279,-253.367532,0.00024996,7]
[321898267,1712595041289,-151.0,0.00024996,7]
[321898268,1712595041298,-495.983778,0.00024996,7]
[321898269,1712595041308,-495.983778,0.00024996,7]
[321898270,1712595041318,-495.983778,0.00024996,7]
[321898271,1712595041328,-495.983778,0.00024996,7]
[321898272,1712595041338,-495.983778,0.00024996,7]
[321898273,1712595041349,-495.983778,0.00024996,7]
[321898274,1712595041360,-151.0,0.00024996,7]
[321898275,1712595041369,-495.983778,0.00024996,7]
[321898276,1712595041379,-151.0,0.00024996,7]
[321898277,1712595041388,-495.983778,0.00024996,7]
[321898278,1712595041400,-151.0,0.00024996,7]
[321898279,1712595041410,-495.983778,0.00024996,7]
[321898280,1712595041421,-495.983778,0.00024996,7]
[321898281,1712595041431,-151.0,0.00024996,7]
[321898282,1712595041445,-151.0,0.00024996,7]
[321898283,1712595041454,-151.0,0.00024996,7]
[321898284,1712595041463,-151.0,0.00024996,7]
[321898285,1712595041473,-151.0,0.00024996,7]
[321898286,1712595041483,-151.0,0.00024996,7]
[321898287,1712595041492,-151.0,0.00024996,7]
[321898288,1712595041505,-151.0,0.00024996,7]
[321898289,1712595041514,-275.318283,0.00024996,7]
[321898290,1712595041524,-213.342594,0.00024996,7]
[321898291,1712595041533,-151.0,0.00024996,7]
[321898292,1712595041543,-213.342594,0.00024996,7]
[321898293,1712595041552,-183.306624,0.00024996,7]
[321898294,1712595041561,-213.342594,0.00024996,7]
[321898295,1712595041571,-213.342594,0.00024996,7]
[321898296,1712595041580,-213.342594,0.00024996,7]
[321898297,1712595041591,-213.342594,0.00024996,7]
[321898298,1712595041600,-213.342594,0.00024996,7]
[321898299,1712595041611,-213.342594,0.00024996,7]
[321898300,1712595041621,-213.342594,0.00024996,7]
[321898301,1712595041630,-213.342594,0.00024996,7]
[321898302,1712595041639,-213.342594,0.00024996,7]
[321898303,1712595041649,-213.342594,0.00024996,7]
[321898304,1712595041660,-151.0,0.00024996,7]
[321898305,1712595041670,-151.0,0.00024996,7]
[321898306,1712595041679,-151.0,0.00024996,7]
[321898307,1712595041690,-151.0,0.00024996,7]
[321898308,1712595041699,-151.0,0.00024996,7]
[321898309,1712595041709,-151.0,0.00024996,7]
[321898310,1712595041719,-677.20894,0.00024996,7]
[321898311,1712595041728,-677.20894,0.00024996,7]
[321898312,1712595041738,-677.20894,0.00024996,7]
[321898313,1712595041748,-677.20894,0.00024996,7]
[321898314,1712595041757,-677.20894,0.00024996,7]
[321898315,1712595041766,-677.20894,0.00024996,7]
[321898316,1712595041776,-677.20894,0.00024996,7]
[321898317,1712595041786,-677.20894,0.00024996,7]
[321898318,1712595041795,-677.20894,0.00024996,7]
[321898319,1712595041805,-677.20894,0.00024996,7]
[321898320,1712595041814,-677.20894,0.00024996,7]
[321898321,1712595041824,-677.20894,0.00024996,7]
[321898322,1712595041833,-170.942716,0.00024996,7]
[321898323,1712595041843,-637.22429,0.00024996,7]
[321898324,1712595041853,-637.22429,0.00024996,7]
[321898325,1712595041863,-637.22429,0.00024996,7]
[321898326,1712595041873,-637.22429,0.00024996,7]
[321898327,1712595041882,-637.22429,0.00024996,7]
[321898328,1712595041893,-637.22429,0.00024996,7]
[321898329,1712595041902,-151.0,0.00024996,7]
[321898330,1712595041911,-151.0,0.00024996,7]
[321898331,1712595041921,-637.22429,0.00024996,7]
[321898332,1712595041930,-151.0,0.00024996,7]
[321898333,1712595041941,-151.0,0.00024996,7]
[321898334,1712595041951,-637.22429,0.00024996,7]
[321898335,1712595041960,-151.0,0.00024996,7]
[321898336,1712595041970,-637.22429,0.00024996,7]
[321898337,1712595041980,-637.22429,0.00024996,7]
[321898338,1712595041989,-637.22429,0.00024996,7]
[321898339,1712595041998,-151.0,0.00024996,7]
[321898340,1712595042007,-151.0,0.00024996,7]
[321898341,1712595042017,-637.22429,0.00024996,7]
[321898342,1712595042027,-151.0,0.00024996,7]
[321898343,1712595042036,-151.0,0.00024996,7]
[321898344,1712595042046,-151.0,0.00024996,7]
[321898345,1712595042055,-151.0,0.00024996,7]
[321898346,1712595042065,-151.0,0.00024996,7]
[321898347,1712595042075,-285.727697,0.00024996,7]
[321898348,1712595042084,-326.534025,0.00024996,7]
[321898349,1712595042094,-326.534025,0.00024996,7]
[321898350,1712595042103,-326.534025,0.00024996,7]
[321898351,1712595042113,-326.534025,0.00024996,7]
[321898352,1712595042123,-326.534025,0.00024996,7]
[321898353,1712595042133,-326.534025,0.00024996,7]
[321898354,1712595042142,-326.534025,0.00024996,7]
[321898355,1712595042152,-326.534025,0.00024996,7]
[321898356,1712595042163,-326.534025,0.00024996,7]
[321898357,1712595042173,-326.534025,0.00024996,7]
[321898358,1712595042183,-326.534025,0.00024996,7]
[321898359,1712595042194,-326.534025,0.00024996,7]
[321898360,1712595042203,-151.0,0.00024996,7]
[321898361,1712595042213,-151.0,0.00024996,7]
[321898362,1712595042223,-151.0,0.00024996,7]
[321898363,1712595042233,-151.0,0.00024996,7]
[321898364,1712595042243,-151.0,0.00024996,7]
[321898365,1712595042253,-151.0,0.00024996,7]
[321898366,1712595042262,-231.761805,0.00024996,7]
[321898367,1712595042272,-231.761805,0.00024996,7]
[321898368,1712595042282,-231.761805,0.00024996,7]
[321898369,1712595042291,-231.761805,0.00024996,7]
[321898370,1712595042301,-231.761805,0.00024996,7]
[321898371,1712595042310,-231.761805,0.00024996,7]
[321898372,1712595042320,-231.761805,0.00024996,7]
[321898373,1712595042329,-231.761805,0.00024996,7]
[321898374,1712595042339,-231.761805,0.00024996,7]
[321898375,1712595042349,-231.761805,0.00024996,7]
[321898376,1712595042360,-231.761805,0.00024996,7]
[321898377,1712595042369,-231.761805,0.00024996,7]
[321898378,1712595042379,-1934.336224,0.00024996,7]
[321898379,1712595042389,-1934.336224,0.00024996,7]
[321898380,1712595042398,-1934.336224,0.00024996,7]
[321898381,1712595042408,-1934.336224,0.00024996,7]
[321898382,1712595042417,-1934.336224,0.00024996,7]
[321898383,1712595042431,-1934.336224,0.00024996,7]
[321898384,1712595042441,-1934.336224,0.00024996,7]
[321898385,1712595042451,-1934.336224,0.00024996,7]
[321898386,1712595042461,-1934.336224,0.00024996,7]
[321898387,1712595042471,-1934.336224,0.00024996,7]
[321898388,1712595042481,-1934.336224,0.00024996,7]
[321898389,1712595042491,-1934.336224,0.00024996,7]
[321898390,1712595042502,-151.0,0.00024996,7]
[321898391,1712595042511,-151.0,0.00024996,7]
[321898392,1712595042522,-151.0,0.00024996,7]
[321898393,1712595042532,-151.0,0.00024996,7]
[321898394,1712595042541,-151.0,0.00024996,7]
[321898395,1712595042551,-151.0,0.00024996,7]
[321898396,1712595042561,-151.0,0.00024996,7]
[321898397,1712595042571,-180.182426,0.00024996,7]
[321898398,1712595042581,-152.589117,0.00024996,7]
[321898399,1712595042591,-18438.78,0.00024996,2]
[321898400,1712595042601,-18438.78,0.00024996,2]
[321898401,1712595042611,-18438.78,0.00024996,2]
[321898402,1712595042620,-18438.78,0.00024996,2]
[321898403,1712595042629,-18438.78,0.00024996,2]
[321898404,1712595042639,-18438.78,0.00024996,2]
[321898405,1712595042650,-18438.78,0.00024996,2]
[321898406,1712595042659,-18438.78,0.00024996,2]
[321898407,1712595042669,-4291.06874933,0.00024996,2]
[321898409,1712595043578,-524.32057752,0.00024996,2]
[321898429,1712595044462,-483.693,0.00024996,2]
[321898430,1712595044474,-7231.01414698,0.00024996,2]
[321898431,1712595044486,-946.39029676,0.00024996,2]
[321898432,1712595044605,-4962.29322941,0.00024996,2]
[321898433,1712595044615,-18438.78,0.00024996,2]
[321898434,1712595044624,-18438.78,0.00024996,2]
[321898435,1712595044633,-18438.78,0.00024996,2]
[321898436,1712595044642,-18438.78,0.00024996,2]
[321898437,1712595044652,-18438.78,0.00024996,2]
[321898438,1712595044661,-18438.78,0.00024996,2]
[321898439,1712595044671,-18438.78,0.00024996,2]
[321898440,1712595044680,-18438.78,0.00024996,2]
[321898441,1712595044691,-151.0,0.00024996,7]
[321898442,1712595044700,-18438.78,0.00024996,2]
[321898443,1712595044709,-151.0,0.00024996,7]
[321898444,1712595044720,-11361.6867727,0.00024996,2]
[321898445,1712595044731,-1202.39567852,0.00024996,2]
[321898446,1712595044743,-736.04278617,0.00024996,2]
[321898447,1712595044754,-975.40414729,0.00024996,2]
[321898448,1712595044766,-1299.7799031,0.00024996,2]
[321898467,1712595046015,-440.67932819,0.00024995,2]
[321898469,1712595046027,-59.32067181,0.00024995,2]
[321898471,1712595046036,-557.08488036,0.00024996,2]
[321898475,1712595046141,-921.48004176,0.00024996,2]
[321898476,1712595046152,-1384.9057901,0.00024996,2]
[321898477,1712595046161,-151.0,0.00024996,7]
[321898478,1712595046170,-3632.44117941,0.00024996,2]
[321898479,1712595046181,-3255.47768441,0.00024996,2]
[321898480,1712595046195,-11550.86113618,0.00024996,2]
[321898481,1712595046204,-151.0,0.00024996,7]
[321898482,1712595046214,-5217.85680963,0.00024996,2]
[321898483,1712595046225,-13220.92319037,0.00024996,2]
[321898484,1712595046234,-156.590053,0.00024996,7]
[321898485,1712595046243,-18438.78,0.00024996,2]
[321898486,1712595046253,-18438.78,0.00024996,2]
[321898487,1712595046262,-18439.00795135,0.00024996,2]
[321898488,1712595046272,-151.0,0.00024996,7]
[321898489,1712595046282,-151.0,0.00024996,7]
[321898490,1712595046291,-151.0,0.00024996,7]
[321898491,1712595046300,-151.0,0.00024996,7]
[321898492,1712595046309,-151.0,0.00024996,7]
[321898493,1712595046319,-151.0,0.00024996,7]
[321898494,1712595046329,-152.898674,0.00024996,7]
[321898495,1712595046339,-151.0,0.00024997,7]
[321898496,1712595046348,-151.0,0.00024997,7]
[321898497,1712595046357,-151.0,0.00024997,7]
[321898498,1712595046367,-151.0,0.00024997,7]
[321898499,1712595046376,-151.0,0.00024997,7]
[321898500,1712595046385,-151.0,0.00024997,7]
[321898501,1712595046395,-151.0,0.00024997,7]
[321898502,1712595046404,-151.0,0.00024997,7]
[321898503,1712595046413,-151.0,0.00024997,7]
[321898504,1712595046422,-151.0,0.00024997,7]
[321898505,1712595046432,-151.0,0.00024997,7]
[321898506,1712595046444,-151.0,0.00024997,7]
[321898507,1712595046453,-151.0,0.00024997,7]
[321898508,1712595046462,-151.0,0.00024997,7]
[321898509,1712595046472,-151.0,0.00024997,7]
[321898510,1712595046482,-151.0,0.00024997,7]
[321898511,1712595046491,-152.830462,0.00024997,7]
[321898512,1712595046501,-151.0,0.00024997,7]
[321898513,1712595046510,-151.0,0.00024997,7]
[321898514,1712595046520,-151.0,0.00024997,7]
[321898515,1712595046529,-151.0,0.00024997,7]
[321898516,1712595046538,-151.0,0.00024997,7]
[321898517,1712595046547,-151.0,0.00024997,7]
[321898518,1712595046556,-151.0,0.00024997,7]
[321898519,1712595046566,-151.0,0.00024997,7]
[321898520,1712595046575,-151.0,0.00024997,7]
[321898521,1712595046585,-151.0,0.00024997,7]
[321898522,1712595046594,-151.0,0.00024997,7]
[321898523,1712595046603,-151.0,0.00024997,7]
[321898524,1712595046614,-151.0,0.00024997,7]
[321898525,1712595046624,-151.0,0.00024997,7]
[321898526,1712595046634,-151.0,0.00024997,7]
[321898527,1712595046645,-151.0,0.00024997,7]
[321898528,1712595046655,-151.0,0.00024997,7]
[321898529,1712595046666,-151.0,0.00024997,7]
[321898530,1712595046675,-161.769972,0.00024997,7]
[321898531,1712595046683,-151.0,0.00024997,7]
[321898532,1712595046694,-151.0,0.00024997,7]
[321898533,1712595046703,-151.0,0.00024997,7]
[321898534,1712595046711,-151.0,0.00024997,7]
[321898535,1712595046720,-151.0,0.00024997,7]
[321898536,1712595046731,-151.0,0.00024997,7]
[321898537,1712595046740,-163.950162,0.00024997,7]
[321898538,1712595046749,-151.0,0.00024997,7]
[321898539,1712595046758,-151.0,0.00024997,7]
[321898540,1712595046767,-151.0,0.00024997,7]
[321898541,1712595046777,-151.0,0.00024997,7]
[321898542,1712595046786,-151.0,0.00024997,7]
[321898543,1712595046795,-151.0,0.00024997,7]
[321898544,1712595046804,-151.0,0.00024997,7]
[321898545,1712595046814,-151.0,0.00024997,7]
[321898546,1712595046823,-157.741514,0.00024997,7]
[321898547,1712595046834,-151.0,0.00024997,7]
[321898548,1712595046843,-151.0,0.00024997,7]
[321898549,1712595046853,-151.0,0.00024997,7]
[321898550,1712595046862,-151.0,0.00024997,7]
[321898551,1712595046871,-151.0,0.00024997,7]
[321898552,1712595046881,-151.0,0.00024997,7]
[321898553,1712595046890,-151.0,0.00024997,7]
[321898554,1712595046899,-151.0,0.00024997,7]
[321898555,1712595046910,-151.0,0.00024997,7]
[321898556,1712595046919,-282.158692,0.00024997,7]
[321898557,1712595046928,-151.0,0.00024997,7]
[321898558,1712595046938,-151.0,0.00024997,7]
[321898559,1712595046947,-151.0,0.00024997,7]
[321898560,1712595046956,-151.0,0.00024997,7]
[321898561,1712595046965,-151.0,0.00024997,7]
[321898562,1712595047228,-151.0,0.00024997,7]
[321898563,1712595047239,-151.0,0.00024997,7]
[321898564,1712595047249,-151.0,0.00024997,7]
[321898565,1712595047258,-151.0,0.00024997,7]
[321898566,1712595047267,-151.0,0.00024997,7]
[321898567,1712595047276,-151.0,0.00024997,7]
[321898568,1712595047286,-151.0,0.00024997,7]
[321898569,1712595047295,-151.0,0.00024997,7]
[321898570,1712595047304,-151.0,0.00024997,7]
[321898571,1712595047314,-151.0,0.00024997,7]
[321898572,1712595047323,-151.0,0.00024997,7]
[321898573,1712595047332,-151.0,0.00024997,7]
[321898574,1712595047341,-166.42708,0.00024997,7]
[321898575,1712595047350,-498.133005,0.00024997,7]
[321898576,1712595047359,-498.133005,0.00024997,7]
[321898577,1712595047369,-498.133005,0.00024997,7]
[321898578,1712595047378,-498.133005,0.00024997,7]
[321898579,1712595047387,-498.133005,0.00024997,7]
[321898580,1712595047397,-498.133005,0.00024997,7]
[321898581,1712595047407,-498.133005,0.00024997,7]
[321898582,1712595047416,-498.133005,0.00024997,7]
[321898583,1712595047426,-498.133005,0.00024997,7]
[321898584,1712595047441,-498.133005,0.00024997,7]
[321898585,1712595047450,-498.133005,0.00024997,7]
[321898586,1712595047460,-498.133005,0.00024997,7]
[321898587,1712595047471,-151.0,0.00024997,7]
[321898588,1712595047480,-151.0,0.00024997,7]
[321898589,1712595047489,-151.0,0.00024997,7]
[321898590,1712595047499,-151.0,0.00024997,7]
[321898591,1712595047508,-194.432004,0.00024997,7]
[321898592,1712595047518,-151.0,0.00024997,7]
[321898593,1712595047528,-151.0,0.00024997,7]
[321898594,1712595047537,-151.0,0.00024997,7]
[321898595,1712595047546,-151.0,0.00024997,7]
[321898596,1712595047555,-151.0,0.00024997,7]
[321898597,1712595047564,-151.0,0.00024997,7]
[321898598,1712595047573,-167.024315,0.00024997,7]
[321898599,1712595047582,-151.0,0.00024997,7]
[321898600,1712595047593,-151.0,0.00024997,7]
[321898601,1712595047602,-151.0,0.00024997,7]
[321898602,1712595047616,-151.0,0.00024997,7]
[321898603,1712595047632,-151.0,0.00024997,7]
[321898604,1712595047641,-151.0,0.00024997,7]
[321898605,1712595047651,-87.99297781,0.00024997,7]
[321898606,1712595047665,-98.98081119,0.00024997,7]
[321898607,1712595047675,-186.973789,0.00024997,7]
[321898608,1712595047685,-186.973789,0.00024997,7]
[321898609,1712595047698,-186.973789,0.00024997,7]
[321898610,1712595047707,-186.973789,0.00024997,7]
[321898611,1712595047717,-186.973789,0.00024997,7]
[321898612,1712595047727,-186.973789,0.00024997,7]
[321898613,1712595047736,-158.04306352,0.00024997,7]
[321898614,1712595047757,-28.93072548,0.00024997,7]
[321898615,1712595047767,-186.973789,0.00024997,7]
[321898616,1712595047775,-186.973789,0.00024997,7]
[321898617,1712595047785,-186.973789,0.00024997,7]
[321898618,1712595047794,-186.973789,0.00024997,7]
[321898619,1712595047803,-128.90183609,0.00024997,7]
[321898620,1712595047844,-319.31715993,0.00024995,2]
[321898621,1712595047856,-23.05494093,0.00024995,2]
[321898622,1712595047866,-22.09816391,0.00024997,7]
[321898623,1712595047875,-151.0,0.00024997,7]
[321898624,1712595047884,-151.0,0.00024997,7]
[321898625,1712595047893,-151.0,0.00024997,7]
[321898626,1712595047902,-151.0,0.00024997,7]
[321898627,1712595047912,-151.0,0.00024997,7]
[321898628,1712595047921,-743.475074,0.00024997,7]
[321898629,1712595047930,-743.475074,0.00024997,7]
[321898630,1712595047940,-674.695404,0.00024997,7]
[321898631,1712595047949,-151.0,0.00024997,7]
[321898632,1712595047958,-674.695404,0.00024997,7]
[321898633,1712595047967,-151.0,0.00024997,7]
[321898634,1712595047976,-151.0,0.00024997,7]
[321898635,1712595047985,-151.0,0.00024997,7]
[321898636,1712595047994,-151.0,0.00024997,7]
[321898637,1712595048003,-195.547668,0.00024997,7]
[321898638,1712595048012,-195.547668,0.00024997,7]
[321898639,1712595048022,-151.0,0.00024997,7]
[321898640,1712595048031,-151.0,0.00024997,7]
[321898641,1712595048041,-253.367532,0.00024997,7]
[321898642,1712595048050,-253.367532,0.00024997,7]
[321898643,1712595048059,-495.983778,0.00024997,7]
[321898644,1712595048068,-495.983778,0.00024997,7]
[321898645,1712595048077,-151.0,0.00024997,7]
[321898646,1712595048086,-151.0,0.00024997,7]
[321898647,1712595048095,-151.0,0.00024997,7]
[321898648,1712595048104,-1934.336224,0.00024997,7]
[321898649,1712595048113,-1934.336224,0.00024997,7]
[321898650,1712595048123,-151.0,0.00024997,7]
[321898651,1712595048132,-151.0,0.00024997,7]
[321898652,1712595048141,-151.0,0.00024997,7]
[321898653,1712595048150,-28188.91772155,0.00024998,2]
[321898659,1712595266139,760.7276373,0.0003,30]
[321898660,1712595280565,967.98102029,5.2e-05,2]
[321898661,1712595302559,967.98102029,5.2e-05,2]
[321898662,1712595302596,314.75,0.00024329,15]
[321898663,1712595320595,504.31811157,5.2e-05,2]
[321898664,1712595342953,16540.64744435,0.0003,30]
[321898665,1712595344579,504.31811157,5.2e-05,2]
[321898666,1712595359783,504.31811157,5.2e-05,2]
[321898667,1712595370792,151.0,5.2e-05,2]
[321898668,1712595371645,152.0,5.2e-05,2]
[321898669,1712595381803,248.08362471,5.2e-05,2]
[321898670,1712595381823,256.35074263,5.2e-05,2]
[321898671,1712595403789,504.43436734,5.2e-05,2]
[321898672,1712595426570,-408.09213224,0.00020973,2]
[321898673,1712595426593,-150.0,0.00020973,2]
[321898674,1712595426615,-550.75005717,0.00020974,2]
[321898675,1712595426637,-5533.20289702,0.00020974,2]
[321898676,1712595426658,-1239.24531074,0.00020975,2]
[321898677,1712595426680,-407.47196267,0.00020975,2]
[321898678,1712595426700,-404.73102028,0.00020976,2]
[321898679,1712595426721,-447.07544994,0.00020976,2]
[321898680,1712595426741,-155.0,0.00020976,2]
[321898681,1712595426763,-205.93031481,0.00020977,2]
[321898682,1712595426784,-362.35522605,0.00020977,2]
[321898683,1712595426804,-1253.70769458,0.00020978,2]
[321898684,1712595427758,1045.19799734,0.00020972,2]
[321898685,1712595428766,201.84235747,0.00020972,2]
[321898686,1712595429811,504.43436734,5.2e-05,2]
[321898687,1712595455981,504.43436734,5.2e-05,2]
[321898688,1712595471998,504.43436734,5.2e-05,120]
[321898689,1712595488844,504.43436734,5.2e-05,120]
[321898690,1712595506331,406.18108736,5.2e-05,120]
[321898691,1712595571305,198.589764,0.00028,20]
[321898692,1712595645995,150.0,0.00028,20]
[321898728,1712595988067,295.07,0.00024329,15]
[321898779,1712596232628,-525.36968266,0.00020993,2]
[321898780,1712596232638,-201.84235747,0.00020994,2]
[321898781,1712596232647,-531.41244433,0.00020997,2]
[321898782,1712596232657,-550.0,0.00021,3]
[321898783,1712596232668,-387.47,0.00021085,2]
[321898784,1712596232677,-55.93551558,0.00021122,2]
[321898787,1712596232689,-1310.88314025,0.00021122,2]
[321898789,1712596232699,-1296.33667789,0.00022495,2]
[321898791,1712596232708,-264.98679253,0.00022496,2]
[321898792,1712596232717,-250.0,0.00022993,2]
[321898793,1712596232726,-640.0,0.00022998,2]
[321898794,1712596232735,-600.0,0.00023,3]
[321898795,1712596232744,-7925.45,0.00023,2]
[321898796,1712596232753,-8678.53,0.00023,2]
[321898797,1712596232762,-227.51184237,0.00023003,2]
[321898798,1712596232771,-205.57155529,0.00023003,2]
[321898799,1712596232780,-333.68785673,0.00023003,2]
[321898800,1712596232789,-271.66882113,0.00023003,2]
[321898801,1712596232799,-1397.96788959,0.00023003,2]
[321898802,1712596232808,-401.78894169,0.00023003,2]
[321898803,1712596232817,-248.48570102,0.00023004,2]
[321898804,1712596232828,-396.80526535,0.00023004,2]
[321898805,1712596232837,-164.63075597,0.00023004,2]
[321898806,1712596232848,-200.33061371,0.00023022,2]
[321898807,1712596232858,-329.07661536,0.0002304,2]
[321898808,1712596232868,-164.76,0.00023043,2]
[321898809,1712596232877,-155.78441961,0.00023069,2]
[321898810,1712596232888,-155.78441961,0.00023075,2]
[321898811,1712596232899,-262.92950562,0.00023076,2]
[321898812,1712596232908,-360.0,0.000231,2]
[321898813,1712596232918,-250.0,0.00023119,2]
[321898814,1712596232927,-554.22,0.00023131,2]
[321898815,1712596232936,-2136.64,0.00023153,2]
[321898816,1712596232945,-500.0,0.00023154,2]
[321898817,1712596232954,-424.62191795,0.00023162,2]
[321898818,1712596232963,-152.08,0.00023206,2]
[321898819,1712596232972,-153.24506346,0.00023281,2]
[321898820,1712596232981,-438.5406196,0.00023308,2]